bitfinex-derivatives/quotes_ETHF0:USTF0_20250824
["timestamp","ask_amount","ask_price","bid_price","bid_amount"]
[1756064872528,1.73495673,4820.5,4817.6,3.2078]
[1756064872529,1.0834,4820.1,4817.6,3.2078]
[1756064872725,3.2078,4820.7,4819.7,3.2078]
[1756064872926,1.0834,4821.0,4819.7,3.2078]
[1756064873239,1.7605,4822.5,4819.8,6.73895346]
[1756064873536,4.2912,4823.1,4821.0,3.2078]
[1756064873726,1.7605,4823.0,4821.5,3.2078]
[1756064874033,1.0834,4822.8,4821.5,3.2078]
[1756064874328,0.44730539,4822.7,4821.5,3.2078]
[1756064874529,0.00577539,4822.6,4822.4,0.41481]
[1756064874733,1.0399,4825.3,4822.5,3.2078]
[1756064874927,0.41461,4824.8,4823.8,3.2078]
[1756064875132,0.41469,4823.9,4823.0,3.2078]
[1756064875328,0.4147,4823.8,4822.5,3.2078]
[1756064875532,0.41476,4823.1,4822.5,3.2078]
[1756064875730,1.0834,4822.9,4822.5,3.2078]
[1756064875930,1.0834,4822.7,4822.5,3.2078]
[1756064876134,3.8838,4822.7,4821.5,3.2078]
[1756064876330,2.8439,4822.7,4821.5,3.2078]
[1756064876833,2.8439,4822.7,4820.8,3.2078]
[1756064877227,2.8439,4822.7,4820.8,3.62275]
[1756064877431,2.8439,4822.7,4821.3,3.2078]
[1756064877832,1.0709,4821.6,4821.3,3.2078]
[1756064878029,1.0709,4821.4,4821.3,3.2078]
[1756064878336,0.41486,4822.0,4821.3,3.2078]
[1756064878631,0.41486,4822.0,4818.7,29.907]
[1756064878632,1.0709,4821.4,4820.3,3.2078]
[1756064879033,1.0709,4821.4,4820.4,0.41499]
[1756064879234,0.41491,4821.3,4820.9,3.2078]
[1756064879428,1.0262,4822.4,4820.9,3.2078]
[1756064879429,1.0709,4821.2,4820.9,3.2078]
[1756064879630,1.0262,4822.4,4820.9,3.2078]
[1756064879631,1.0709,4822.1,4820.9,3.2078]
[1756064879933,1.0709,4822.1,4820.8,0.41495]
[1756064879934,1.0709,4822.1,4820.8,3.2078]
[1756064880143,0.41485,4822.0,4820.8,3.2078]
[1756064880334,0.41487,4821.8,4820.8,3.2078]
[1756064880536,0.41487,4821.8,4819.0,1.03775]
[1756064880537,0.41477,4822.9,4821.3,3.2078]
[1756064880735,1.0709,4824.0,4822.6,3.2078]
[1756064881336,0.41474,4823.2,4822.6,3.2078]
[1756064881642,1.0262,4823.9,4822.6,3.2078]
[1756064881938,1.8681,4824.2,4820.7,29.895]
[1756064881939,1.8681,4824.2,4823.2,3.2078]
[1756064882134,1.8681,4825.1,4823.7,3.2078]
[1756064882336,3.2078,4825.5,4823.8,0.4147]
[1756064882538,1.0709,4825.7,4824.4,0.41464]
[1756064882843,3.2078,4826.2,4824.2,3.2078]
[1756064883036,1.40133583,4826.6,4825.0,0.41459]
[1756064883241,1.40133583,4826.6,4824.9,3.2078]
[1756064883242,3.2078,4826.2,4824.6,3.2078]
[1756064883436,1.40133583,4826.9,4825.4,3.2078]
[1756064883644,3.2078,4827.4,4825.4,3.2078]
[1756064883645,4.2787,4827.4,4825.6,0.41454]
[1756064883935,4.2787,4827.4,4825.8,3.2078]
[1756064884242,4.2787,4827.4,4825.8,3.62232]
[1756064884437,4.2787,4827.4,4825.8,3.2078]
[1756064884645,4.2787,4827.4,4825.9,3.2078]
[1756064884938,1.0709,4827.4,4826.4,3.2078]
[1756064885337,1.0709,4827.4,4825.8,3.2078]
[1756064885535,1.8681,4827.8,4826.9,3.2078]
[1756064885733,3.2078,4828.1,4826.4,0.41447]
[1756064885734,3.2078,4828.1,4826.4,3.62227]
[1756064885937,1.0709,4828.3,4826.5,0.41446]
[1756064886146,1.8681,4828.8,4827.5,3.2078]
[1756064886439,1.0709,4829.2,4827.0,3.2078]
[1756064886632,1.8681,4828.4,4825.7,3.2078]
[1756064886832,5.0759,4828.1,4825.7,3.2078]
[1756064887044,1.8681,4827.9,4825.7,3.2078]
[1756064887245,1.8681,4827.4,4825.0,3.2078]
[1756064887437,1.8681,4827.4,4826.2,3.2078]
[1756064887638,3.2078,4828.4,4827.1,0.41441]
[1756064887639,4.2787,4828.4,4827.1,0.41441]
[1756064887941,1.73495673,4833.8,4825.6,20.7272]
[1756064887942,4.2787,4829.3,4828.3,3.2078]
[1756064888440,1.0709,4829.3,4828.3,3.2078]
[1756064888943,3.2078,4830.0,4828.3,3.2078]
[1756064889238,1.1709,4830.2,4829.5,3.2078]
[1756064889632,5.0759,4829.9,4828.1,3.2078]
[1756064889832,3.2078,4828.5,4827.1,3.2078]
[1756064890030,1.0709,4828.6,4826.8,3.2078]
[1756064890239,1.0709,4828.6,4824.7,32.952]
[1756064890240,1.0709,4828.6,4827.1,3.2078]
[1756064890435,1.0709,4830.0,4828.0,3.2078]
[1756064890638,1.0709,4830.0,4827.2,32.933]
[1756064890639,1.0709,4830.0,4828.5,3.2078]
[1756064890937,1.0709,4829.9,4827.5,3.2078]
[1756064891139,3.2078,4828.9,4827.5,3.2078]
[1756064891337,3.2078,4828.9,4826.2,3.2078]
[1756064891338,1.0709,4828.8,4826.2,3.2078]
[1756064891645,1.0709,4827.5,4825.6,36.1368]
[1756064891942,3.2078,4826.7,4825.6,3.2078]
[1756064892132,1.8681,4826.9,4824.5,3.2078]
[1756064892444,1.0709,4826.2,4824.5,3.2078]
[1756064892738,1.0709,4827.2,4825.4,3.2078]
[1756064892939,1.0709,4827.0,4824.7,3.2078]
[1756064893441,1.0709,4827.0,4825.2,3.2078]
[1756064894242,2.8943,4826.8,4824.2,3.2078]
[1756064894445,1.0709,4826.7,4824.7,3.2078]
[1756064894645,1.0709,4826.7,4823.0,32.877]
[1756064894646,1.0709,4826.7,4825.8,3.2078]
[1756064895445,2.0971,4826.7,4825.8,3.2078]
[1756064895645,1.0709,4826.7,4825.8,3.2078]
[1756064895839,2.0971,4826.7,4825.8,3.2078]
[1756064896034,32.859,4829.5,4823.4,29.858]
[1756064896035,3.2078,4826.1,4824.2,3.2078]
[1756064896236,1.0709,4826.0,4824.2,3.2078]
[1756064896441,1.0709,4826.0,4824.8,3.2078]
[1756064897037,3.2078,4825.3,4824.3,3.2078]
[1756064897239,3.9652,4825.2,4824.3,3.2078]
[1756064897444,3.9652,4825.2,4821.9,1.03715]
[1756064897445,2.939,4825.2,4823.6,3.2078]
[1756064897642,1.0709,4825.2,4823.6,3.2078]
[1756064897843,4.2787,4825.2,4823.6,3.2078]
[1756064898048,3.2078,4825.0,4823.6,3.2078]
[1756064898346,3.2078,4825.0,4821.5,29.858]
[1756064898347,1.0709,4824.8,4823.2,3.2078]
[1756064898545,1.0709,4824.8,4823.8,3.2078]
[1756064898936,4.2787,4825.7,4824.3,3.2078]
[1756064899136,1.0709,4825.5,4822.8,3.2078]
[1756064899343,1.8681,4824.9,4822.6,3.2078]
[1756064899642,3.9652,4823.6,4822.6,3.2078]
[1756064899843,1.0709,4823.5,4822.6,3.2078]
[1756064900047,1.0709,4823.5,4821.9,3.2078]
[1756064900245,2.939,4824.4,4822.7,3.2078]
[1756064900444,2.0971,4823.8,4822.7,3.2078]
[1756064900638,1.0262,4822.7,4821.4,3.2078]
[1756064900841,1.0709,4822.5,4821.4,3.2078]
[1756064901346,1.0709,4822.5,4821.6,0.41488]
[1756064901542,1.0709,4823.4,4822.0,3.2078]
[1756064902137,1.0709,4823.4,4822.9,3.2078]
[1756064902346,1.0709,4824.3,4823.2,0.41474]
[1756064902541,1.0709,4824.3,4823.4,3.2078]
[1756064902741,3.9652,4825.3,4823.9,3.2078]
[1756064902944,3.9652,4825.3,4824.7,0.41461]
[1756064902945,1.0709,4825.3,4824.7,0.41461]
[1756064903147,3.2078,4825.8,4824.4,3.2078]
[1756064903645,2.8943,4825.6,4823.5,3.2078]
[1756064903850,29.865,4827.2,4823.5,3.2078]
[1756064903851,2.939,4825.2,4823.5,3.2078]
[1756064904044,1.0709,4825.1,4823.5,3.2078]
[1756064904244,1.0709,4825.1,4824.8,0.4146]
[1756064904449,1.0262,4826.1,4825.3,0.41456]
[1756064904640,2.939,4826.2,4825.5,3.62234]
[1756064904840,2.939,4826.2,4825.5,3.2078]
[1756064905046,1.0709,4826.2,4825.5,3.2078]
[1756064905344,2.8943,4827.0,4826.4,0.41447]
[1756064905546,1.0709,4827.1,4826.1,3.2078]
[1756064905850,1.8681,4827.9,4826.9,3.2078]
[1756064906054,1.8681,4827.9,4826.3,3.2078]
[1756064906249,1.0262,4827.8,4825.9,3.2078]
[1756064906550,2.8943,4826.7,4824.6,0.41462]
[1756064906755,1.0709,4826.1,4824.4,3.62244]
[1756064906953,1.0709,4826.1,4824.4,3.2078]
[1756064907251,2.0971,4825.1,4823.8,0.41472]
[1756064907454,3.2078,4824.9,4823.7,3.2078]
[1756064907648,1.8681,4824.9,4823.7,3.2078]
[1756064908042,1.7454,4825.8,4824.7,0.41463]
[1756064908249,1.7454,4825.8,4823.9,3.2078]
[1756064908441,1.0019,4825.6,4823.9,3.2078]
[1756064908643,1.0904,4824.4,4823.3,3.2078]
[1756064908841,2.8358,4823.9,4822.8,3.2078]
[1756064909153,1.0019,4823.8,4822.5,0.41482]
[1756064909350,1.0019,4823.8,4822.7,0.41481]
[1756064909548,1.0019,4823.8,4822.3,3.2078]
[1756064909749,6.0436,4823.9,4822.0,4.30932878]
[1756064910047,6.0436,4823.9,4823.2,3.2078]
[1756064910048,1.0904,4823.9,4823.2,3.2078]
[1756064910251,3.2078,4823.5,4822.4,0.41483]
[1756064910448,1.0019,4823.8,4822.3,0.41484]
[1756064910449,4.2097,4823.8,4822.3,0.41484]
[1756064910648,4.2097,4823.8,4822.5,0.41483]
[1756064910847,3.8377,4824.8,4823.2,3.2078]
[1756064911047,3.8377,4824.8,4823.3,4.24471]
[1756064911253,1.0904,4824.8,4823.8,3.2078]
[1756064911443,1.7454,4825.4,4824.5,0.41465]
[1756064911648,1.7454,4825.4,4824.7,0.41464]
[1756064912048,1.7454,4825.4,4824.3,3.2078]
[1756064912249,1.0904,4825.9,4824.9,0.41462]
[1756064912648,3.2078,4825.5,4824.1,0.41559]
[1756064912848,3.2078,4825.5,4824.0,3.2078]
[1756064913047,1.0904,4825.1,4824.1,0.41469]
[1756064913252,1.0904,4825.9,4824.7,3.2078]
[1756064913550,3.2078,4826.5,4825.0,3.2078]
[1756064913551,4.2097,4826.5,4825.0,3.2078]
[1756064913754,1.0904,4826.4,4825.0,3.2078]
[1756064913950,1.0019,4826.1,4824.4,3.2078]
[1756064914151,1.0904,4825.8,4824.4,3.2078]
[1756064914345,2.8358,4825.6,4823.8,3.2078]
[1756064914548,3.2078,4826.0,4823.8,3.2078]
[1756064914750,2.0923,4825.2,4823.8,3.2078]
[1756064915055,1.0904,4824.8,4823.8,3.2078]
[1756064915448,1.0904,4824.8,4823.2,3.2078]
[1756064915751,1.0904,4824.8,4823.9,3.2078]
[1756064915960,1.0904,4824.8,4823.0,0.0009]
[1756064916163,1.0904,4824.8,4821.4,32.591]
[1756064916164,3.2078,4824.1,4822.7,3.2078]
[1756064916458,3.2078,4824.1,4821.9,1.1035]
[1756064916459,2.0923,4823.9,4821.9,1.1035]
[1756064916654,3.2078,4823.6,4822.2,0.41485]
[1756064916857,3.2078,4823.1,4822.2,0.41485]
[1756064917260,3.2078,4823.1,4822.3,0.41484]
[1756064917453,3.2078,4823.1,4822.0,0.41487]
[1756064917850,3.2078,4823.1,4821.8,3.2078]
[1756064918159,1.7454,4822.9,4821.8,3.2078]
[1756064918350,1.7454,4822.9,4822.1,0.41486]
[1756064918759,3.2078,4822.6,4821.3,3.2078]
[1756064918955,3.8377,4822.0,4820.4,1.1035]
[1756064919154,29.865,4823.7,4820.1,3.2078]
[1756064919155,2.0923,4821.3,4820.1,3.2078]
[1756064919854,2.0923,4821.3,4819.5,1.1035]
[1756064919855,1.0019,4820.8,4819.5,3.2078]
[1756064920159,1.7454,4820.9,4819.6,1.1035]
[1756064920357,1.7454,4820.9,4819.9,0.41505]
[1756064920558,3.2078,4821.0,4819.7,0.8697]
[1756064920758,3.2078,4821.0,4820.1,0.41504]
[1756064920960,3.2078,4821.0,4819.7,0.8697]
[1756064921260,1.7454,4822.0,4820.8,1.9732]
[1756064921460,1.7454,4822.0,4820.8,2.38817]
[1756064921650,3.2078,4822.5,4821.3,0.41493]
[1756064922058,3.2078,4822.5,4820.8,1.9732]
[1756064922255,2.7473,4821.7,4819.9,1.1035]
[1756064922451,1.0904,4820.9,4819.5,3.2078]
[1756064922760,3.8377,4820.9,4819.7,0.41507]
[1756064922954,1.7454,4820.8,4819.5,3.2078]
[1756064923155,1.0019,4820.7,4819.5,3.2078]
[1756064923351,1.0019,4820.7,4819.8,0.41506]
[1756064923554,1.0019,4820.7,4818.7,1.0379]
[1756064923555,2.7473,4820.4,4818.6,0.41516]
[1756064923755,2.7473,4820.4,4818.3,1.03798]
[1756064923953,2.7473,4820.4,4819.4,0.4151]
[1756064924160,3.2078,4820.5,4819.0,4.0775]
[1756064924458,1.0019,4819.0,4816.8,1.10152878]
[1756064924652,1.0019,4818.3,4817.0,1.0258]
[1756064924855,0.8688,4817.1,4817.0,2.1908]
[1756064925061,3.2078,4818.1,4817.0,1.7755]
[1756064925256,1.8709,4818.0,4816.7,3.2078]
[1756064925456,4.2097,4817.2,4816.2,0.41537]
[1756064925854,1.0904,4817.1,4816.8,0.41531]
[1756064926160,3.2078,4817.7,4817.1,2.8013]
[1756064926359,29.875,4820.4,4817.6,1.7755]
[1756064926360,3.2078,4819.4,4817.6,1.7755]
[1756064926564,1.7454,4820.0,4818.7,0.41515]
[1756064926565,1.0904,4819.9,4818.7,0.41515]
[1756064926768,1.0904,4819.9,4818.4,4.9833]
[1756064927064,1.0904,4819.9,4818.2,1.0258]
[1756064927363,1.0019,4819.8,4818.2,1.0258]
[1756064927663,1.0904,4819.4,4818.2,0.4152]
[1756064927858,1.0904,4819.4,4818.0,3.2078]
[1756064928060,3.2078,4819.3,4818.1,0.41521]
[1756064928261,3.2078,4819.3,4818.0,3.2078]
[1756064928463,3.2078,4819.9,4819.2,2.8013]
[1756064928652,1.0904,4820.4,4820.2,0.41503]
[1756064928854,1.0904,4821.2,4819.8,1.7755]
[1756064929054,3.2078,4821.7,4820.5,3.2078]
[1756064929465,3.2078,4821.7,4818.9,1.03785]
[1756064929466,1.0904,4821.0,4819.9,0.41505]
[1756064929661,1.0904,4821.0,4819.6,0.41508]
[1756064929965,1.0904,4821.0,4819.8,0.41506]
[1756064930159,29.881,4822.6,4818.6,1.7755]
[1756064930160,3.2078,4820.3,4818.6,1.7755]
[1756064930360,3.2078,4820.3,4819.4,0.4151]
[1756064930557,3.2078,4820.3,4818.9,1.0258]
[1756064930758,3.2078,4820.3,4820.1,1.7755]
[1756064931065,1.0904,4820.5,4820.1,1.7755]
[1756064931258,1.0904,4820.8,4819.8,0.41506]
[1756064931455,1.0019,4820.4,4819.2,0.41511]
[1756064931660,3.2078,4820.0,4818.9,0.41514]
[1756064932055,1.0904,4820.3,4820.1,0.41504]
[1756064932264,4.2982,4821.2,4820.0,1.7755]
[1756064932460,3.2078,4821.2,4821.1,0.41495]
[1756064932655,1.0904,4822.0,4821.1,2.8013]
[1756064932859,1.0904,4823.1,4822.9,0.4148]
[1756064933063,1.0904,4823.1,4822.5,0.41483]
[1756064933278,1.0904,4823.1,4821.9,2.8013]
[1756064933457,2.7473,4823.0,4821.8,0.41489]
[1756064933656,1.0904,4822.9,4822.0,0.41487]
[1756064933867,1.0904,4822.9,4821.7,0.4149]
[1756064934064,1.0904,4822.9,4821.2,3.2078]
[1756064934267,1.0904,4822.9,4821.6,0.41491]
[1756064934656,1.0904,4822.9,4821.3,0.41493]
[1756064934963,1.0019,4822.8,4821.4,0.41492]
[1756064935165,1.0904,4822.7,4821.4,0.41492]
[1756064935368,1.0904,4822.7,4821.1,2.19045]
[1756064935764,1.0904,4822.7,4821.3,0.41493]
[1756064935962,1.0904,4822.7,4821.2,3.2078]
[1756064936268,1.0904,4822.7,4821.9,0.41488]
[1756064936469,1.0904,4822.7,4822.0,0.41489]
[1756064936665,1.0904,4822.7,4821.7,3.2078]
[1756064936867,3.2078,4821.8,4820.3,1.7755]
[1756064937164,3.8377,4821.7,4820.8,0.41499]
[1756064937364,3.8377,4821.7,4820.3,1.7755]
[1756064937562,1.0904,4821.2,4820.1,3.2078]
[1756064938061,3.2078,4821.3,4821.0,3.12019]
[1756064938261,1.1537,4821.9,4821.1,0.9484]
[1756064938557,1.1537,4821.8,4821.7,0.41493]
[1756064938967,3.2078,4822.4,4821.7,0.41493]
[1756064939164,3.2078,4822.9,4822.4,0.41486]
[1756064939367,3.2078,4822.9,4822.6,3.12005]
[1756064939567,3.2078,4822.9,4822.7,2.7052]
[1756064939964,1.1537,4823.7,4822.8,2.7052]
[1756064940172,1.1537,4824.6,4823.6,0.9484]
[1756064940366,1.1537,4825.5,4824.5,2.7052]
[1756064940558,1.1537,4825.5,4825.2,0.41462]
[1756064940764,1.1537,4825.5,4825.4,0.9484]
[1756064940963,3.2078,4826.0,4825.7,0.41457]
[1756064941163,3.2078,4826.8,4826.5,0.41451]
[1756064941363,3.2078,4826.8,4826.5,3.11971]
[1756064941364,0.40925579,4826.7,4826.5,3.11971]
[1756064941562,1.1537,4827.2,4826.9,0.41447]
[1756064941763,0.40918866,4827.1,4826.6,0.4145]
[1756064941966,3.2078,4828.0,4827.0,0.41447]
[1756064942167,1.1537,4828.3,4827.1,3.2078]
[1756064942478,1.1537,4828.3,4826.9,2.7052]
[1756064942479,1.1537,4828.3,4826.9,3.11967]
[1756064942665,1.1537,4828.3,4826.6,3.2078]
[1756064942666,3.2078,4828.1,4826.6,3.2078]
[1756064942869,1.1537,4828.0,4826.2,0.9484]
[1756064943066,1.1537,4828.0,4826.6,3.2078]
[1756064943361,1.1537,4828.9,4827.5,0.9484]
[1756064943561,1.1537,4828.9,4828.0,0.41438]
[1756064943760,1.1537,4828.9,4828.2,0.41436]
[1756064944272,1.1537,4828.9,4827.7,3.2078]
[1756064944565,1.1537,4828.9,4825.5,33.24451]
[1756064944566,1.1537,4828.9,4828.2,4.1562]
[1756064944773,3.2078,4829.6,4828.8,1.7568]
[1756064944971,1.1537,4829.7,4828.8,1.7568]
[1756064945171,1.1537,4829.7,4827.4,52.87669]
[1756064945172,1.1537,4829.7,4829.4,1.7568]
[1756064945669,1.1537,4829.7,4829.1,3.2078]
[1756064945670,4.0,4829.7,4829.1,3.2078]
[1756064945865,1.1537,4830.0,4828.4,1.7568]
[1756064946061,1.1537,4830.0,4828.6,3.2078]
[1756064946267,1.8283,4829.9,4828.6,3.2078]
[1756064946568,0.1,4830.2,4829.2,0.9484]
[1756064946768,2.2371,4830.2,4829.6,1.7568]
[1756064946967,2.2371,4830.2,4828.7,4.9646]
[1756064947168,1.8283,4830.1,4828.7,3.2078]
[1756064947361,2.1371,4829.2,4828.2,3.2078]
[1756064947562,1.1537,4829.1,4827.1,3.2078]
[1756064947768,1.1537,4828.4,4827.2,1.36285]
[1756064947969,0.0074327,4828.4,4827.4,0.9484]
[1756064948174,0.0074327,4828.4,4828.3,3.11956]
[1756064948470,3.2078,4829.9,4829.1,0.9484]
[1756064948768,3.2078,4829.9,4829.7,2.7052]
[1756064948974,1.1537,4830.9,4830.1,3.1194]
[1756064949166,1.1537,4830.9,4830.1,5.913]
[1756064949775,1.1537,4830.9,4830.1,2.7052]
[1756064949969,1.1537,4830.9,4830.1,1.7568]
[1756064950164,2.1371,4830.9,4829.7,3.2078]
[1756064950367,1.1537,4830.9,4829.8,0.9484]
[1756064950572,1.1537,4830.9,4830.0,2.7052]
[1756064950875,3.9654,4831.7,4830.1,3.1194]
[1756064951070,3.9654,4831.7,4830.1,6.7052]
[1756064951071,1.1537,4831.7,4830.1,6.7052]
[1756064951273,1.1537,4831.7,4829.7,3.2078]
[1756064951274,3.2078,4832.2,4830.9,0.9484]
[1756064951471,2.1371,4832.5,4831.0,1.7568]
[1756064951666,1.8283,4832.4,4830.8,3.2078]
[1756064951976,1.1537,4832.3,4830.9,0.41413]
[1756064952174,1.1537,4832.3,4831.1,1.7568]
[1756064952572,0.9834,4832.2,4830.5,3.2078]
[1756064952770,0.9834,4832.2,4830.2,1.7568]
[1756064952771,0.9834,4831.6,4830.2,1.7568]
[1756064952970,1.1537,4831.1,4829.6,3.2078]
[1756064953275,1.1537,4831.9,4830.3,1.7568]
[1756064953468,5.0361,4832.9,4831.8,4.1562]
[1756064953670,1.1537,4832.8,4831.8,4.1562]
[1756064953975,1.1537,4832.8,4831.5,1.7568]
[1756064954270,1.1537,4832.8,4831.5,0.41408]
[1756064954574,1.1537,4832.8,4831.4,0.9484]
[1756064954773,1.1537,4832.8,4830.5,3.2078]
[1756064954774,0.9834,4832.7,4830.5,3.2078]
[1756064955071,0.9834,4832.4,4830.5,3.2078]
[1756064955374,1.1537,4832.5,4831.6,0.41407]
[1756064955578,1.1537,4832.5,4830.7,0.9484]
[1756064955875,1.1537,4832.5,4831.5,0.41408]
[1756064956074,3.2078,4833.4,4831.7,1.03518]
[1756064956270,3.2078,4834.2,4833.9,0.41388]
[1756064956466,3.2078,4834.2,4832.5,1.03499]
[1756064956467,1.1537,4835.2,4834.1,1.7568]
[1756064956669,1.1537,4835.1,4834.2,0.9484]
[1756064956870,3.2078,4835.4,4834.5,0.41382]
[1756064957074,2.8117,4835.7,4834.4,3.62163]
[1756064957274,4.3615,4835.9,4834.4,3.2078]
[1756064957473,3.2078,4835.2,4834.1,1.7568]
[1756064957668,1.1537,4835.1,4834.2,0.9484]
[1756064957867,2.1371,4835.1,4834.1,1.7568]
[1756064958073,1.1537,4835.1,4834.1,1.7568]
[1756064958577,3.2078,4835.9,4834.4,2.7052]
[1756064958777,1.1537,4836.7,4834.9,2.7052]
[1756064958977,3.2078,4836.3,4835.6,0.41373]
[1756064959177,1.1537,4836.7,4835.2,0.41376]
[1756064959373,1.8283,4836.1,4834.9,1.7568]
[1756064959677,3.2078,4835.6,4834.9,1.7568]
[1756064959867,1.1537,4835.5,4834.3,0.9484]
[1756064960078,1.1537,4835.5,4833.9,3.2078]
[1756064960272,1.1537,4834.3,4831.8,3.2078]
[1756064960478,6.0195,4833.4,4832.0,0.41404]
[1756064960675,6.0195,4833.4,4830.9,3.2078]
[1756064960676,3.2078,4832.9,4832.2,1.0966]
[1756064961069,3.2078,4832.9,4832.5,2.8534]
[1756064961276,4.1912,4832.9,4831.7,1.7568]
[1756064961478,3.2078,4832.1,4831.7,1.7568]
[1756064961683,3.2078,4832.1,4831.0,3.2078]
[1756064961981,2.067,4836.3,4830.6,29.826]
[1756064961982,3.2078,4832.6,4831.5,3.2078]
[1756064962276,3.2078,4832.6,4832.5,3.6035]
[1756064962470,3.2078,4832.6,4832.5,2.8534]
[1756064962676,3.2078,4832.6,4831.7,0.7501]
[1756064962875,3.2078,4832.6,4832.0,0.41404]
[1756064963075,3.2078,4832.6,4831.3,0.4141]
[1756064963287,31.893,4836.9,4830.4,4.3044]
[1756064963288,3.2078,4831.6,4830.4,4.3044]
[1756064963475,3.2078,4831.6,4831.1,0.41411]
[1756064963671,6.0195,4832.1,4831.9,0.41404]
[1756064963878,3.2078,4832.1,4832.0,2.5069]
[1756064964077,5.0361,4832.8,4832.0,3.6035]
[1756064964277,5.0361,4832.8,4832.0,2.8534]
[1756064964474,3.2078,4832.3,4831.2,1.8467]
[1756064964671,3.2078,4832.3,4832.0,0.41404]
[1756064964879,5.0361,4833.7,4832.2,3.6035]
[1756064965278,3.2078,4834.5,4834.1,0.41386]
[1756064965473,3.2078,4834.5,4834.2,1.51045]
[1756064965678,3.2078,4834.5,4834.4,3.6035]
[1756064966178,3.2078,4835.4,4834.4,7.6035]
[1756064966382,3.2078,4834.9,4833.7,0.41389]
[1756064966579,1.40133583,4837.6,4833.6,1.0966]
[1756064966580,3.2078,4834.3,4833.6,1.0966]
[1756064966879,3.2078,4833.8,4832.8,2.17077]
[1756064967181,3.2078,4833.3,4832.8,1.7568]
[1756064967480,3.2078,4833.3,4833.2,1.0966]
[1756064967684,3.2078,4833.3,4833.2,3.653]
[1756064967978,3.2078,4833.3,4833.2,2.9052]
[1756064968283,3.2078,4833.3,4833.2,1.0966]
[1756064968483,29.817,4836.6,4833.2,7.653]
[1756064968484,3.2078,4833.8,4833.2,7.653]
[1756064968679,3.2078,4833.8,4833.7,0.4139]
[1756064968881,3.2078,4835.9,4834.6,0.7478]
[1756064969076,1.0768,4836.2,4835.9,0.4137]
[1756064969284,2.8997,4837.0,4835.5,3.2078]
[1756064969473,0.4505801,4836.9,4835.5,3.2078]
[1756064969673,0.41364,4836.7,4835.5,3.2078]
[1756064969875,0.4505801,4836.6,4835.5,3.2078]
[1756064970080,0.4505801,4836.5,4835.5,3.2078]
[1756064970387,0.9473,4836.9,4835.5,3.2078]
[1756064970682,0.9473,4836.9,4836.3,0.41367]
[1756064970986,0.9473,4836.9,4836.0,0.41369]
[1756064971191,3.2078,4837.2,4836.7,0.41364]
[1756064971192,3.847,4837.1,4836.7,0.41364]
[1756064971481,0.41355,4837.8,4836.0,2.5538]
[1756064971687,3.847,4837.4,4836.0,3.2078]
[1756064971980,0.41365,4836.6,4835.1,1.8086]
[1756064972173,2.7702,4836.7,4835.9,0.41371]
[1756064972376,3.18384,4836.7,4835.9,0.41371]
[1756064972784,2.7702,4836.7,4835.1,1.8086]
[1756064972980,3.2078,4836.9,4836.6,0.41364]
[1756064973278,2.7702,4837.5,4836.1,3.2078]
[1756064973481,0.4136,4837.2,4836.4,0.41366]
[1756064973685,2.8997,4837.5,4836.2,2.22228]
[1756064973983,0.41364,4836.7,4835.5,0.41374]
[1756064974180,2.8997,4836.8,4835.4,0.41375]
[1756064974374,0.9473,4835.9,4835.1,0.41377]
[1756064974574,1.36101,4835.9,4835.1,0.41378]
[1756064975281,0.9473,4835.9,4834.8,3.2078]
[1756064975786,0.9473,4835.9,4835.5,0.41374]
[1756064975987,3.847,4835.8,4835.5,0.41374]
[1756064976189,2.8997,4835.6,4835.1,0.41378]
[1756064976385,3.847,4835.6,4835.3,0.41376]
[1756064976585,3.847,4835.6,4835.5,0.41374]
[1756064977283,3.2078,4836.0,4835.4,0.41374]
[1756064977485,2.7702,4835.7,4834.2,3.2078]
[1756064977683,2.7702,4835.7,4833.7,29.811]
[1756064977684,3.2078,4835.0,4834.5,0.41382]
[1756064977883,2.0241,4834.8,4832.8,5.0164]
[1756064978184,1.0768,4834.2,4834.1,0.41386]
[1756064978386,3.847,4834.2,4833.0,1.03489]
[1756064978685,3.847,4834.2,4834.1,0.41386]
[1756064979186,2.8997,4834.9,4833.5,1.03478]
[1756064979385,3.847,4835.3,4833.9,0.7452]
[1756064979687,1.8229,4834.7,4833.8,0.41389]
[1756064979984,2.7702,4834.5,4834.0,0.41387]
[1756064980187,20.67734,4837.9,4832.6,0.41398]
[1756064980188,2.8997,4833.9,4832.6,0.41398]
[1756064980390,3.847,4833.1,4833.0,0.41396]
[1756064980585,3.847,4833.1,4832.7,0.41397]
[1756064980786,0.41398,4832.8,4831.8,0.41405]
[1756064981082,0.41398,4832.8,4830.6,1.0354]
[1756064981083,3.18426,4831.8,4831.1,0.41412]
[1756064981289,2.7702,4831.8,4831.1,0.41412]
[1756064981489,3.2078,4832.1,4831.3,0.4141]
[1756064981682,3.847,4831.6,4831.3,0.4141]
[1756064981878,2.8997,4831.2,4829.5,3.2078]
[1756064982083,29.801,4834.0,4829.5,3.2078]
[1756064982084,0.9473,4830.9,4829.5,3.2078]
[1756064982280,0.9473,4830.9,4829.6,2.02672]
[1756064982480,0.9473,4830.9,4830.6,0.41416]
[1756064982781,3.2078,4831.0,4830.8,0.41414]
[1756064982987,3.847,4830.9,4830.8,0.41414]
[1756064983280,29.801,4834.0,4830.0,3.2078]